fUST/lending_fUST_20240430
["ID","MTS","AMOUNT","RATE_DAILY","PERIOD"]
[324945699,1714457450588,-500.0,0.00032054,2]
[324945700,1714457450598,-500.0,0.00032054,2]
[324945701,1714457450607,-500.0,0.00032054,2]
[324945702,1714457450617,-500.0,0.00032054,2]
[324945703,1714457450626,-500.0,0.00032054,2]
[324945704,1714457450635,-530.17,0.00032054,2]
[324945705,1714457450644,-500.0,0.00032054,2]
[324945706,1714457450653,-556.7,0.00032054,2]
[324945708,1714457450663,-611.4,0.00032054,2]
[324945710,1714457450672,-500.0,0.00032054,2]
[324945712,1714457450682,-500.0,0.00032054,2]
[324945714,1714457450691,-556.41,0.00032054,2]
[324945716,1714457450700,-500.0,0.00032054,2]
[324945718,1714457450710,-500.0,0.00032054,2]
[324945720,1714457450719,-500.0,0.00032054,2]
[324945722,1714457450727,-500.0,0.00032054,2]
[324945724,1714457450737,-786.77,0.00032054,2]
[324945726,1714457450746,-725.92,0.00032054,2]
[324945728,1714457450755,-1136.93,0.00032054,2]
[324945730,1714457450764,-544.02,0.00032054,2]
[324945732,1714457450773,-500.0,0.00032054,2]
[324945734,1714457450782,-500.0,0.00032054,2]
[324945736,1714457450791,-1279.478513,0.00032054,2]
[324945738,1714457450801,-559.246242,0.00032054,2]
[324945740,1714457450810,-1279.478513,0.00032054,2]
[324945742,1714457450819,-506.78,0.00032054,2]
[324945744,1714457450828,-500.0,0.00032054,2]
[324945746,1714457450838,-500.0,0.00032054,2]
[324945748,1714457450848,-1279.478513,0.00032054,2]
[324945750,1714457450856,-1279.478513,0.00032054,2]
[324945752,1714457450865,-500.0,0.00032054,2]
[324945754,1714457450875,-500.0,0.00032054,2]
[324945766,1714457450972,-500.0,0.00032054,2]
[324945768,1714457450982,-545.68,0.00032054,2]
[324945770,1714457450991,-500.76170349,0.00032054,2]
[324945772,1714457451000,-151.0,0.00032054,2]
[324945774,1714457451009,-151.0,0.00032054,2]
[324945776,1714457451018,-527.95,0.00032054,2]
[324945778,1714457451027,-714.47,0.00032054,2]
[324945780,1714457451036,-151.0,0.00032054,2]
[324945781,1714457451045,-500.0,0.00032054,2]
[324945782,1714457451054,-151.0,0.00032054,2]
[324945783,1714457451063,-151.0,0.00032054,2]
[324945784,1714457451072,-151.0,0.00032054,2]
[324945785,1714457451081,-151.0,0.00032054,2]
[324945786,1714457451090,-7971.4,0.00032054,2]
[324945787,1714457451099,-500.0,0.00032054,2]
[324945788,1714457451108,-500.0,0.00032054,2]
[324945789,1714457451118,-500.0,0.00032054,2]
[324945790,1714457451127,-1524.12,0.00032054,2]
[324945791,1714457451137,-500.0,0.00032054,2]
[324945792,1714457451146,-500.0,0.00032054,2]
[324945793,1714457451155,-669.64,0.00032054,2]
[324945794,1714457451164,-2130.25473581,0.0003208,2]
[324945795,1714457451173,-2867.67739548,0.0003208,2]
[324945796,1714457451183,-1003.38381317,0.0003208,2]
[324945797,1714457451192,-2278.1746162,0.0003208,30]
[324945798,1714457451202,-10000.0,0.0003208,30]
[324945799,1714457451211,-31015.61966486,0.0003208,7]
[324945800,1714457451220,-19203.57843039,0.0003208,60]
[324945801,1714457451229,-21163.73890465,0.0003208,120]
[324945802,1714457451239,-500.0,0.0003208,10]
[324945803,1714457451248,-500.0,0.0003208,10]
[324945804,1714457451257,-254.21453462,0.0003208,10]
[324945805,1714457451266,-500.0,0.0003208,10]
[324945806,1714457451276,-5648.0,0.0003208,30]
[324945807,1714457451285,-153.40602022,0.0003208,2]
[324945808,1714457451295,-153.40602022,0.0003208,2]
[324945809,1714457451304,-153.40602022,0.0003208,2]
[324945810,1714457451313,-977.78497557,0.0003208,2]
[324945811,1714457451323,-153.8921486,0.00032085,7]
[324945812,1714457451333,-150.5,0.00032298,35]
[324945813,1714457451342,-535.0,0.00032298,35]
[324945814,1714457451352,-150.5,0.00032308,35]
[324945816,1714457451363,-535.0,0.00032308,35]
[324945817,1714457451374,-179.35,0.00032318,35]
[324945819,1714457451383,-150.5,0.00032318,35]
[324945820,1714457451393,-535.0,0.00032318,35]
[324945821,1714457451403,-500.0,0.00032328,2]
[324945822,1714457451412,-500.0,0.00032328,2]
[324945823,1714457451421,-500.0,0.00032328,2]
[324945824,1714457451431,-573.99,0.00032328,2]
[324945825,1714457451443,-500.0,0.00032328,2]
[324945826,1714457451452,-500.0,0.00032328,2]
[324945827,1714457451462,-500.0,0.00032328,2]
[324945828,1714457451471,-500.0,0.00032328,2]
[324945829,1714457451481,-500.0,0.00032328,2]
[324945830,1714457451490,-500.0,0.00032328,2]
[324945831,1714457451500,-500.0,0.00032328,2]
[324945832,1714457451510,-899.84,0.00032328,2]
[324945833,1714457451519,-500.0,0.00032328,2]
[324945834,1714457451529,-500.0,0.00032328,2]
[324945835,1714457451539,-500.0,0.00032328,2]
[324945836,1714457451548,-500.0,0.00032328,2]
[324945837,1714457451559,-500.0,0.00032328,2]
[324945838,1714457451568,-500.0,0.00032328,2]
[324945839,1714457451578,-500.0,0.00032328,2]
[324945840,1714457451587,-500.0,0.00032328,2]
[324945841,1714457451596,-500.0,0.00032328,2]
[324945842,1714457451606,-500.0,0.00032328,2]
[324945843,1714457451615,-500.0,0.00032328,2]
[324945844,1714457451624,-261.48718366,0.00032328,2]
[324945845,1714457451633,-605.54,0.00032328,2]
[324945846,1714457451642,-513.6,0.00032328,2]
[324945847,1714457451651,-532.84,0.00032328,2]
[324945848,1714457451660,-500.0,0.00032328,2]
[324945849,1714457451669,-505.64,0.00032328,2]
[324945850,1714457451678,-603.01,0.00032328,2]
[324945851,1714457451687,-500.0,0.00032328,2]
[324945852,1714457451696,-500.0,0.00032328,2]
[324945853,1714457451705,-500.0,0.00032328,2]
[324945854,1714457451714,-500.0,0.00032328,2]
[324945855,1714457451724,-566.94421964,0.00032328,2]
[324945856,1714457451733,-500.0,0.00032328,2]
[324945857,1714457451750,-500.0,0.00032328,2]
[324945858,1714457451767,-500.0,0.00032328,2]
[324945859,1714457451781,-500.0,0.00032328,2]
[324945860,1714457451797,-500.0,0.00032328,2]
[324945861,1714457451813,-500.0,0.00032328,2]
[324945862,1714457451828,-500.0,0.00032328,2]
[324945863,1714457451846,-500.0,0.00032328,2]
[324945864,1714457451864,-500.0,0.00032328,2]
[324945865,1714457451878,-500.0,0.00032328,2]
[324945866,1714457451894,-500.0,0.00032328,2]
[324945867,1714457451909,-518.31,0.00032328,2]
[324945868,1714457451921,-500.0,0.00032328,2]
[324945869,1714457451934,-500.0,0.00032328,2]
[324945870,1714457451949,-500.0,0.00032328,2]
[324945871,1714457451964,-500.0,0.00032328,2]
[324945872,1714457451980,-500.0,0.00032328,2]
[324945873,1714457451996,-501.65486159,0.00032328,2]
[324945874,1714457452007,-517.02804935,0.00032328,2]
[324945875,1714457452020,-500.0,0.00032328,2]
[324945876,1714457452035,-500.0,0.00032328,2]
[324945877,1714457452050,-500.0,0.00032328,2]
[324945878,1714457452061,-500.0,0.00032328,14]
[324945879,1714457452075,-500.0,0.00032328,2]
[324945880,1714457452088,-500.0,0.00032328,2]
[324945881,1714457452100,-500.0,0.00032328,2]
[324945882,1714457452113,-500.0,0.00032328,2]
[324945883,1714457452126,-500.0,0.00032328,2]
[324945884,1714457452138,-500.0,0.00032328,30]
[324945885,1714457452151,-500.0,0.00032328,2]
[324945886,1714457452164,-799.99,0.00032328,2]
[324945887,1714457452176,-500.0,0.00032328,2]
[324945888,1714457452189,-500.0,0.00032328,2]
[324945889,1714457452202,-500.0,0.00032328,2]
[324945890,1714457452213,-874.16,0.00032328,2]
[324945892,1714457452227,-500.0,0.00032328,2]
[324945893,1714457452238,-500.0,0.00032328,2]
[324945894,1714457452251,-151.0,0.00032328,2]
[324945895,1714457452264,-974.74,0.00032328,2]
[324945896,1714457452277,-455.75602029,0.00032328,2]
[324945897,1714457452290,-500.0,0.00032328,2]
[324945898,1714457452302,-500.0,0.00032328,2]
[324945899,1714457452315,-308.4611226,0.00032328,2]
[324945901,1714457452327,-500.0,0.00032328,2]
[324945903,1714457452340,-764.82,0.00032328,2]
[324945904,1714457452353,-500.0,0.00032328,2]
[324945905,1714457452368,-500.0,0.00032328,2]
[324945906,1714457452381,-500.0,0.00032328,2]
[324945907,1714457452395,-500.0,0.00032328,2]
[324945908,1714457452412,-1008.03,0.00032328,2]
[324945909,1714457452424,-151.0,0.00032328,2]
[324945910,1714457452438,-500.0,0.00032328,2]
[324945911,1714457452451,-599.82,0.00032328,2]
[324945912,1714457452463,-871.87,0.00032328,2]
[324945913,1714457452476,-500.0,0.00032328,2]
[324945914,1714457452489,-513.93,0.00032328,2]
[324945915,1714457452502,-500.0,0.00032328,2]
[324945916,1714457452514,-500.0,0.00032328,2]
[324945917,1714457452527,-151.0,0.00032328,2]
[324945918,1714457452541,-500.0,0.00032328,2]
[324945919,1714457452555,-500.0,0.00032328,2]
[324945920,1714457452567,-716.63,0.00032328,2]
[324945921,1714457452579,-500.0,0.00032328,2]
[324945922,1714457452592,-300.0,0.00032328,2]
[324945923,1714457452605,-500.0,0.00032328,2]
[324945924,1714457452618,-500.0,0.00032328,2]
[324945925,1714457452631,-500.0,0.00032328,2]
[324945927,1714457452644,-500.0,0.00032328,2]
[324945929,1714457452657,-500.0,0.00032328,2]
[324945931,1714457452670,-500.0,0.00032328,2]
[324945933,1714457452682,-500.0,0.00032328,2]
[324945935,1714457452695,-500.0,0.00032328,2]
[324945938,1714457452707,-628.8198716,0.00032328,2]
[324945940,1714457452719,-500.0,0.00032328,2]
[324945942,1714457452732,-500.0,0.00032328,2]
[324945943,1714457452744,-1006.99,0.00032328,2]
[324945944,1714457452756,-500.0,0.00032328,2]
[324945945,1714457452768,-500.0,0.00032328,2]
[324945946,1714457452781,-500.0,0.00032328,2]
[324945947,1714457452794,-159.048063,0.00032328,2]
[324945948,1714457452805,-504.7752951,0.00032328,2]
[324945949,1714457452814,-500.0,0.00032328,2]
[324945950,1714457452824,-159.048063,0.00032328,2]
[324945951,1714457452833,-500.0,0.00032328,2]
[324945952,1714457452988,-500.0,0.00032328,2]
[324945953,1714457452998,-559.33,0.00032328,2]
[324945954,1714457453007,-500.0,0.00032328,2]
[324945955,1714457453017,-509.77,0.00032328,2]
[324945956,1714457453027,-240.260412,0.00032328,2]
[324945957,1714457453038,-500.0,0.00032328,2]
[324945958,1714457453047,-500.0,0.00032328,2]
[324945959,1714457453057,-240.260412,0.00032328,2]
[324945960,1714457453066,-595.4509549,0.00032328,2]
[324945961,1714457453075,-500.0,0.00032328,2]
[324945962,1714457453085,-728.48,0.00032328,2]
[324945963,1714457453095,-638.59,0.00032328,2]
[324945964,1714457453104,-890.43,0.00032328,2]
[324945965,1714457453113,-500.0,0.00032328,2]
[324945966,1714457453123,-500.0,0.00032328,2]
[324945967,1714457453132,-500.0,0.00032328,2]
[324945968,1714457453141,-500.0,0.00032328,2]
[324945969,1714457453150,-500.0,0.00032328,2]
[324945970,1714457453159,-500.0,0.00032328,2]
[324945971,1714457453169,-500.0,0.00032328,2]
[324945972,1714457453178,-672.86,0.00032328,2]
[324945973,1714457453187,-500.0,0.00032328,2]
[324945974,1714457453198,-500.0,0.00032328,2]
[324945975,1714457453207,-500.0,0.00032328,2]
[324945976,1714457453216,-645.5,0.00032328,2]
[324945977,1714457453226,-720.2,0.00032328,2]
[324945978,1714457453235,-500.0,0.00032328,2]
[324945979,1714457453244,-500.0,0.00032328,2]
[324945980,1714457453254,-500.0,0.00032328,2]
[324945981,1714457453264,-500.0,0.00032328,2]
[324945982,1714457453273,-500.0,0.00032328,2]
[324945983,1714457453282,-500.0,0.00032328,2]
[324945984,1714457453292,-500.0,0.00032328,2]
[324945985,1714457453301,-500.0,0.00032328,2]
[324945986,1714457453310,-503.98,0.00032328,2]
[324945987,1714457453320,-500.0,0.00032328,2]
[324945988,1714457453329,-500.0,0.00032328,2]
[324945989,1714457453339,-500.0,0.00032328,2]
[324945990,1714457453348,-500.0,0.00032328,2]
[324945991,1714457453359,-500.0,0.00032328,2]
[324945992,1714457453372,-151.0,0.00032328,2]
[324945993,1714457453382,-500.0,0.00032328,2]
[324945994,1714457453391,-652.87,0.00032328,2]
[324945995,1714457453400,-500.0,0.00032328,2]
[324945996,1714457453410,-893.45,0.00032328,2]
[324945997,1714457453419,-630.12,0.00032328,2]
[324945998,1714457453428,-500.0,0.00032328,2]
[324945999,1714457453439,-500.0,0.00032328,2]
[324946000,1714457453448,-500.0,0.00032328,2]
[324946001,1714457453457,-500.0,0.00032328,2]
[324946002,1714457453467,-500.0,0.00032328,2]
[324946003,1714457453476,-548.15343844,0.00032328,2]
[324946004,1714457453485,-500.0,0.00032328,2]
[324946005,1714457453494,-500.0,0.00032328,2]
[324946006,1714457453503,-500.0,0.00032328,2]
[324946007,1714457453513,-500.0,0.00032328,2]
[324946008,1714457453522,-607.54793352,0.00032328,2]
[324946009,1714457453532,-890.42,0.00032328,2]
[324946010,1714457453541,-500.0,0.00032328,2]
[324946011,1714457453550,-500.0,0.00032328,2]
[324946012,1714457453560,-242.50183676,0.00032328,2]
[324946013,1714457453569,-500.0,0.00032328,2]
[324946014,1714457453579,-500.0,0.00032328,2]
[324946015,1714457453589,-500.0,0.00032328,2]
[324946016,1714457453598,-500.0,0.00032328,2]
[324946017,1714457453607,-892.37,0.00032328,2]
[324946018,1714457453618,-500.0,0.00032328,2]
[324946019,1714457453627,-672.287224,0.00032328,2]
[324946020,1714457453636,-151.0,0.00032328,2]
[324946021,1714457453644,-353.56630975,0.00032328,2]
[324946022,1714457453654,-672.287224,0.00032328,2]
[324946023,1714457453663,-571.67,0.00032328,2]
[324946024,1714457453672,-657.48,0.00032328,2]
[324946025,1714457453681,-728.25,0.00032328,2]
[324946026,1714457453690,-500.0,0.00032328,2]
[324946027,1714457453700,-639.64,0.00032328,2]
[324946028,1714457453709,-445.062086,0.00032328,2]
[324946029,1714457453719,-500.0,0.00032328,2]
[324946030,1714457453728,-500.0,0.00032328,2]
[324946031,1714457453737,-565.58,0.00032328,2]
[324946032,1714457453747,-445.062086,0.00032328,2]
[324946033,1714457453756,-151.0,0.00032328,2]
[324946034,1714457453765,-500.0,0.00032328,2]
[324946035,1714457453774,-500.0,0.00032328,2]
[324946036,1714457453784,-164.34715649,0.00032328,2]
[324946037,1714457453793,-500.0,0.00032328,2]
[324946038,1714457453802,-555.04,0.00032328,2]
[324946039,1714457453813,-512.91,0.00032328,2]
[324946040,1714457453822,-500.0,0.00032328,2]
[324946041,1714457453831,-986.08364,0.00032328,2]
[324946042,1714457453840,-707.6,0.00032328,2]
[324946043,1714457453849,-986.08364,0.00032328,2]
[324946044,1714457453859,-500.0,0.00032328,2]
[324946045,1714457453867,-500.0,0.00032328,2]
[324946046,1714457453876,-500.0,0.00032328,2]
[324946047,1714457453886,-500.0,0.00032328,2]
[324946048,1714457453895,-539.55,0.00032328,2]
[324946049,1714457453905,-500.0,0.00032328,2]
[324946050,1714457453915,-500.0,0.00032328,2]
[324946051,1714457453926,-500.0,0.00032328,2]
[324946052,1714457453936,-500.0,0.00032328,2]
[324946053,1714457453945,-500.0,0.00032328,2]
[324946054,1714457453954,-500.0,0.00032328,2]
[324946055,1714457453963,-500.0,0.00032328,2]
[324946056,1714457453972,-500.0,0.00032328,2]
[324946057,1714457453980,-500.0,0.00032328,2]
[324946058,1714457453990,-820.95,0.00032328,2]
[324946059,1714457453999,-821.44,0.00032328,2]
[324946060,1714457454008,-685.27,0.00032328,2]
[324946061,1714457454017,-500.0,0.00032328,2]
[324946062,1714457454026,-500.0,0.00032328,2]
[324946063,1714457454036,-500.0,0.00032328,2]
[324946064,1714457454044,-500.0,0.00032328,2]
[324946065,1714457454054,-537.134986,0.00032328,2]
[324946066,1714457454063,-500.0,0.00032328,2]
[324946067,1714457454072,-151.0,0.00032328,2]
[324946068,1714457454082,-537.134986,0.00032328,2]
[324946069,1714457454090,-433.29266876,0.00032328,2]
[324946070,1714457454100,-928.29,0.00032328,2]
[324946071,1714457454109,-787.88,0.00032328,2]
[324946072,1714457454119,-554.17,0.00032328,2]
[324946073,1714457454128,-546.039288,0.00032328,2]
[324946074,1714457454137,-500.0,0.00032328,2]
[324946075,1714457454146,-546.039288,0.00032328,2]
[324946076,1714457454156,-1095.77,0.00032328,2]
[324946077,1714457454164,-500.0,0.00032328,2]
[324946078,1714457454173,-500.0,0.00032328,2]
[324946079,1714457454183,-985.67,0.00032328,2]
[324946080,1714457454191,-500.0,0.00032328,2]
[324946081,1714457454201,-500.0,0.00032328,2]
[324946082,1714457454209,-500.0,0.00032328,2]
[324946083,1714457454219,-500.0,0.00032328,2]
[324946084,1714457454228,-500.0,0.00032328,2]
[324946085,1714457454237,-500.0,0.00032328,2]
[324946086,1714457454246,-228.325206,0.00032328,2]
[324946087,1714457454255,-500.0,0.00032328,2]
[324946088,1714457454264,-500.0,0.00032328,2]
[324946089,1714457454273,-228.325206,0.00032328,2]
[324946090,1714457454283,-500.0,0.00032328,2]
[324946091,1714457454292,-500.0,0.00032328,2]
[324946092,1714457454301,-577.75,0.00032328,2]
[324946093,1714457454310,-500.0,0.00032328,2]
[324946094,1714457454319,-248.875974,0.00032328,2]
[324946095,1714457454328,-500.0,0.00032328,2]
[324946096,1714457454337,-248.875974,0.00032328,2]
[324946097,1714457454346,-500.0,0.00032328,2]
[324946098,1714457454357,-500.0,0.00032328,2]
[324946099,1714457454367,-500.0,0.00032328,2]
[324946100,1714457454376,-500.0,0.00032328,2]
[324946101,1714457454385,-654.2,0.00032328,2]
[324946102,1714457454395,-1781.610281,0.00032328,2]
[324946103,1714457454405,-500.0,0.00032328,2]
[324946104,1714457454414,-500.0,0.00032328,2]
[324946105,1714457454424,-1781.610281,0.00032328,2]
[324946106,1714457454434,-500.0,0.00032328,2]
[324946107,1714457454444,-500.0,0.00032328,2]
[324946108,1714457454453,-500.0,0.00032328,2]
[324946109,1714457454462,-500.0,0.00032328,2]
[324946110,1714457454471,-500.0,0.00032328,2]
[324946111,1714457454480,-530.17,0.00032328,2]
[324946112,1714457454489,-500.0,0.00032328,2]
[324946113,1714457454498,-556.7,0.00032328,2]
[324946114,1714457454507,-611.4,0.00032328,2]
[324946115,1714457454516,-500.0,0.00032328,2]
[324946116,1714457454526,-500.0,0.00032328,2]
[324946117,1714457454536,-556.41,0.00032328,2]
[324946118,1714457454546,-500.0,0.00032328,2]
[324946119,1714457454555,-500.0,0.00032328,2]
[324946120,1714457454565,-500.0,0.00032328,2]
[324946121,1714457454574,-500.0,0.00032328,2]
[324946122,1714457454584,-786.77,0.00032328,2]
[324946123,1714457454593,-725.92,0.00032328,2]
[324946124,1714457454603,-1136.93,0.00032328,2]
[324946125,1714457454612,-544.02,0.00032328,2]
[324946126,1714457454622,-500.0,0.00032328,2]
[324946127,1714457454631,-500.0,0.00032328,2]
[324946128,1714457454641,-1279.478513,0.00032328,2]
[324946129,1714457454650,-1279.478513,0.00032328,2]
[324946130,1714457454660,-506.78,0.00032328,2]
[324946131,1714457454669,-500.0,0.00032328,2]
[324946132,1714457454678,-500.0,0.00032328,2]
[324946133,1714457454688,-1279.478513,0.00032328,2]
[324946134,1714457454697,-1279.478513,0.00032328,2]
[324946135,1714457454706,-500.0,0.00032328,2]
[324946136,1714457454716,-500.0,0.00032328,2]
[324946137,1714457454724,-500.0,0.00032328,2]
[324946138,1714457454734,-545.68,0.00032328,2]
[324946139,1714457454743,-151.0,0.00032328,2]
[324946140,1714457454753,-151.0,0.00032328,2]
[324946141,1714457454763,-527.95,0.00032328,2]
[324946142,1714457454772,-714.47,0.00032328,2]
[324946143,1714457454782,-500.0,0.00032328,2]
[324946144,1714457454792,-151.0,0.00032328,2]
[324946145,1714457454801,-151.0,0.00032328,2]
[324946146,1714457454811,-151.0,0.00032328,2]
[324946147,1714457454820,-151.0,0.00032328,2]
[324946148,1714457454830,-283.739476,0.00032328,2]
[324946149,1714457454840,-7971.4,0.00032328,2]
[324946150,1714457454849,-500.0,0.00032328,2]
[324946151,1714457454859,-500.0,0.00032328,2]
[324946152,1714457454868,-500.0,0.00032328,2]
[324946153,1714457454878,-1524.12,0.00032328,2]
[324946154,1714457454887,-500.0,0.00032328,2]
[324946155,1714457454896,-500.0,0.00032328,2]
[324946156,1714457454905,-669.64,0.00032328,2]
[324946157,1714457454914,-1206.19071393,0.00032332,30]
[324946158,1714457454924,-500.0,0.00032344,5]
[324946159,1714457454933,-155.21372883,0.00032476,7]
[324946160,1714457454943,-150.0,0.00032499,2]
[324946161,1714457454952,-155.21372883,0.00032588,7]
[324946162,1714457454961,-500.0,0.00032602,2]
[324946163,1714457454970,-500.0,0.00032602,2]
[324946164,1714457454979,-573.99,0.00032602,2]
[324946165,1714457454989,-500.0,0.00032602,2]
[324946166,1714457454999,-500.0,0.00032602,2]
[324946167,1714457455009,-500.0,0.00032602,2]
[324946168,1714457455018,-500.0,0.00032602,2]
[324946169,1714457455027,-500.0,0.00032602,2]
[324946170,1714457455037,-500.0,0.00032602,2]
[324946171,1714457455046,-500.0,0.00032602,2]
[324946172,1714457455056,-899.84,0.00032602,2]
[324946173,1714457455065,-500.0,0.00032602,2]
[324946174,1714457455074,-588.3938237,0.00032602,2]
[324946175,1714457455084,-500.0,0.00032602,2]
[324946176,1714457455094,-500.0,0.00032602,2]
[324946177,1714457455104,-500.0,0.00032602,2]
[324946178,1714457455115,-500.0,0.00032602,2]
[324946179,1714457455125,-500.0,0.00032602,2]
[324946180,1714457455134,-500.0,0.00032602,2]
[324946181,1714457455143,-500.0,0.00032602,2]
[324946182,1714457455152,-500.0,0.00032602,2]
[324946183,1714457455161,-500.0,0.00032602,2]
[324946184,1714457455171,-605.54,0.00032602,2]
[324946185,1714457455180,-513.6,0.00032602,2]
[324946186,1714457455189,-532.84,0.00032602,2]
[324946187,1714457455199,-500.0,0.00032602,2]
[324946188,1714457455208,-505.64,0.00032602,2]
[324946189,1714457455218,-603.01,0.00032602,2]
[324946190,1714457455228,-500.0,0.00032602,2]
[324946191,1714457455237,-500.0,0.00032602,2]
[324946192,1714457455246,-500.0,0.00032602,2]
[324946193,1714457455256,-500.0,0.00032602,2]
[324946194,1714457455265,-500.0,0.00032602,2]
[324946195,1714457455274,-500.0,0.00032602,2]
[324946196,1714457455284,-500.0,0.00032602,2]
[324946197,1714457455293,-500.0,0.00032602,2]
[324946198,1714457455303,-500.0,0.00032602,2]
[324946199,1714457455414,-500.0,0.00032602,2]
[324946200,1714457455425,-500.0,0.00032602,2]
[324946201,1714457455434,-500.0,0.00032602,2]
[324946202,1714457455445,-559.27819324,0.00032602,2]
[324946203,1714457455454,-500.0,0.00032602,2]
[324946204,1714457455463,-500.0,0.00032602,2]
[324946205,1714457455473,-518.31,0.00032602,2]
[324946206,1714457455482,-500.0,0.00032602,2]
[324946207,1714457455491,-500.0,0.00032602,2]
[324946208,1714457455500,-500.0,0.00032602,2]
[324946209,1714457455510,-500.0,0.00032602,2]
[324946210,1714457455519,-500.0,0.00032602,2]
[324946211,1714457455529,-500.0,0.00032602,2]
[324946212,1714457455539,-500.0,0.00032602,2]
[324946213,1714457455548,-500.0,0.00032602,2]
[324946214,1714457455558,-521.02101496,0.00032602,14]
[324946215,1714457455567,-500.0,0.00032602,2]
[324946216,1714457455577,-402.86700074,0.00032602,2]
[324946217,1714457455586,-500.0,0.00032602,2]
[324946218,1714457455595,-500.0,0.00032602,2]
[324946219,1714457455604,-500.0,0.00032602,2]
[324946220,1714457455614,-500.0,0.00032602,30]
[324946221,1714457455623,-500.0,0.00032602,2]
[324946222,1714457455633,-799.99,0.00032602,2]
[324946223,1714457455643,-466.36557984,0.00032602,2]
[324946224,1714457455652,-500.0,0.00032602,2]
[324946225,1714457455661,-500.0,0.00032602,2]
[324946226,1714457455671,-874.16,0.00032602,2]
[324946227,1714457455681,-500.0,0.00032602,2]
[324946228,1714457455691,-500.0,0.00032602,2]
[324946229,1714457455700,-974.74,0.00032602,2]
[324946230,1714457455710,-151.0,0.00032602,2]
[324946231,1714457455719,-500.0,0.00032602,2]
[324946232,1714457455728,-500.0,0.00032602,2]
[324946233,1714457455737,-525.99263264,0.00032602,2]
[324946234,1714457455748,-764.82,0.00032602,2]
[324946235,1714457455757,-500.0,0.00032602,2]
[324946236,1714457455766,-500.0,0.00032602,2]
[324946237,1714457455775,-437.16714005,0.00032602,2]
[324946238,1714457455786,-500.0,0.00032602,2]
[324946239,1714457455795,-1008.03,0.00032602,2]
[324946240,1714457455804,-152.579304,0.00032602,2]
[324946241,1714457455814,-500.0,0.00032602,2]
[324946242,1714457455823,-599.82,0.00032602,2]
[324946243,1714457455832,-871.87,0.00032602,2]
[324946244,1714457455841,-500.0,0.00032602,2]
[324946245,1714457455851,-513.93,0.00032602,2]
[324946246,1714457455860,-500.0,0.00032602,2]
[324946247,1714457455869,-500.0,0.00032602,2]
[324946248,1714457455878,-151.0,0.00032602,2]
[324946249,1714457455887,-500.0,0.00032602,2]
[324946250,1714457455896,-500.0,0.00032602,2]
[324946251,1714457455905,-716.63,0.00032602,2]
[324946252,1714457455915,-500.0,0.00032602,2]
[324946253,1714457455924,-300.0,0.00032602,2]
[324946254,1714457455933,-500.0,0.00032602,2]